[Event "Late-Titled-Tuesday-Blitz-May-07-2024"]
[Site "Chess.com"]
[Date "2024.05.07"]
[Round "4"]
[White "baki83"]
[Black "Revan_2002"]
[Result "1-0"]
[WhiteElo "2931"]
[BlackElo "2727"]
[TimeControl "180+1"]
[EndTime "14:39:34 PDT"]
[Termination "baki83 won on time"]

1. e4 {[%clk 0:03:00.9]} 1... e5 {[%clk 0:02:59.7]} 2. Nf3 {[%clk 0:03:01]} 2...
Nc6 {[%clk 0:03:00.3]} 3. Bb5 {[%clk 0:03:01.1]} 3... a6 {[%clk 0:03:00.8]} 4.
Ba4 {[%clk 0:03:01.6]} 4... d6 {[%clk 0:02:59.3]} 5. O-O {[%clk 0:03:01.4]} 5...
Bd7 {[%clk 0:02:59.5]} 6. c3 {[%clk 0:03:01.4]} 6... Nf6 {[%clk 0:02:59.9]} 7.
Re1 {[%clk 0:03:01.5]} 7... g6 {[%clk 0:03:00.4]} 8. d4 {[%clk 0:03:01.9]} 8...
Bg7 {[%clk 0:03:00.2]} 9. Nbd2 {[%clk 0:03:00.5]} 9... O-O {[%clk 0:02:59.9]}
10. Nf1 {[%clk 0:02:57.7]} 10... Re8 {[%clk 0:02:58.2]} 11. Ng3 {[%clk
0:02:55.8]} 11... a5 {[%clk 0:02:51.4]} 12. h3 {[%clk 0:02:48.7]} 12... h6
{[%clk 0:02:51]} 13. Bc2 {[%clk 0:02:38.9]} 13... a4 {[%clk 0:02:50.8]} 14. Be3
{[%clk 0:02:28.1]} 14... a3 {[%clk 0:02:47]} 15. b3 {[%clk 0:02:27.1]} 15... b5
{[%clk 0:02:16.9]} 16. Qd2 {[%clk 0:02:26.6]} 16... Qb8 {[%clk 0:02:08.1]} 17.
Bxh6 {[%clk 0:02:17.9]} 17... b4 {[%clk 0:02:05.7]} 18. Bxg7 {[%clk 0:02:16.7]}
18... Kxg7 {[%clk 0:02:03]} 19. dxe5 {[%clk 0:02:15.3]} 19... dxe5 {[%clk
0:01:57.4]} 20. Nf5+ {[%clk 0:02:08.4]} 20... Bxf5 {[%clk 0:01:52.2]} 21. exf5
{[%clk 0:02:08.3]} 21... e4 {[%clk 0:01:43.2]} 22. Nd4 {[%clk 0:01:51.2]} 22...
bxc3 {[%clk 0:01:36.1]} 23. Qxc3 {[%clk 0:01:52]} 23... Nxd4 {[%clk 0:01:26.7]}
24. Qxd4 {[%clk 0:01:51.9]} 24... Qb6 {[%clk 0:01:22.7]} 25. Qxb6 {[%clk
0:01:43.8]} 25... cxb6 {[%clk 0:01:23.6]} 26. fxg6 {[%clk 0:01:44.2]} 26... fxg6
{[%clk 0:01:24.3]} 27. Rad1 {[%clk 0:01:38.9]} 27... Rac8 {[%clk 0:01:22.3]} 28.
Rd2 {[%clk 0:01:38]} 28... b5 {[%clk 0:01:16.1]} 29. b4 {[%clk 0:01:22.1]} 29...
Rc4 {[%clk 0:01:13.3]} 30. Re3 {[%clk 0:01:22]} 30... Rec8 {[%clk 0:01:03.9]}
31. Bd1 {[%clk 0:01:05.2]} 31... Rc3 {[%clk 0:01:03.9]} 32. Be2 {[%clk
0:00:55.4]} 32... Rxe3 {[%clk 0:00:52.1]} 33. fxe3 {[%clk 0:00:55.2]} 33... Rc1+
{[%clk 0:00:52.7]} 34. Kf2 {[%clk 0:00:54.1]} 34... Rb1 {[%clk 0:00:53.3]} 35.
Bxb5 {[%clk 0:00:51.8]} 35... Rxb4 {[%clk 0:00:51.1]} 36. Bc6 {[%clk 0:00:45.2]}
36... g5 {[%clk 0:00:44.6]} 37. Ke2 {[%clk 0:00:41.1]} 37... Rb2 {[%clk
0:00:36.7]} 38. Kd1 {[%clk 0:00:37.9]} 38... Rb1+ {[%clk 0:00:35.7]} 39. Ke2
{[%clk 0:00:36.8]} 39... Kg6 {[%clk 0:00:31.7]} 40. Rc2 {[%clk 0:00:33.8]} 40...
g4 {[%clk 0:00:26.5]} 41. hxg4 {[%clk 0:00:25.3]} 41... Kg5 {[%clk 0:00:27]} 42.
Kd2 {[%clk 0:00:21.3]} 42... Kxg4 {[%clk 0:00:20.2]} 43. Kc3 {[%clk 0:00:21.1]}
43... Kf5 {[%clk 0:00:09.1]} 44. Kc4 {[%clk 0:00:17.4]} 44... Ke5 {[%clk
0:00:07.3]} 45. Rc3 {[%clk 0:00:15.1]} 45... Ng4 {[%clk 0:00:05.6]} 46. Rxa3
{[%clk 0:00:14.2]} 46... Re1 {[%clk 0:00:03.3]} 47. Ra5+ {[%clk 0:00:13]} 47...
Kd6 {[%clk 0:00:03.7]} 48. Bxe4 {[%clk 0:00:12.1]} 48... Rxe3 {[%clk 0:00:03.3]}
49. Kd4 {[%clk 0:00:11.7]} 49... Re2 {[%clk 0:00:03.1]} 50. Ra6+ {[%clk
0:00:11.9]} 50... Kc7 {[%clk 0:00:02.7]} 51. Bf3 {[%clk 0:00:12]} 51... Rd2+
{[%clk 0:00:02]} 52. Kc3 {[%clk 0:00:12.1]} 1-0

[Event "Late-Titled-Tuesday-Blitz-May-07-2024"]
[Site "Chess.com"]
[Date "2024.05.07"]
[Round "4"]
[White "nindjaxx8"]
[Black "Assumpcaos"]
[Result "0-1"]
[WhiteElo "2632"]
[BlackElo "2217"]
[TimeControl "180+1"]
[EndTime "14:39:36 PDT"]
[Termination "Assumpcaos won by checkmate"]

1. d4 {[%clk 0:03:00.9]} 1... Nf6 {[%clk 0:02:58.6]} 2. c4 {[%clk 0:02:54.3]}
2... g6 {[%clk 0:02:57.8]} 3. Nc3 {[%clk 0:02:52.9]} 3... Bg7 {[%clk 0:02:58.3]}
4. e4 {[%clk 0:02:52.7]} 4... d6 {[%clk 0:02:58.9]} 5. Be2 {[%clk 0:02:52.8]}
5... O-O {[%clk 0:02:59]} 6. Be3 {[%clk 0:02:53.4]} 6... e5 {[%clk 0:02:57.2]}
7. d5 {[%clk 0:02:53.4]} 7... a5 {[%clk 0:02:55.9]} 8. g4 {[%clk 0:02:53.2]}
8... Na6 {[%clk 0:02:55.4]} 9. h4 {[%clk 0:02:53.8]} 9... Nc5 {[%clk 0:02:53.8]}
10. f3 {[%clk 0:02:54.1]} 10... b6 {[%clk 0:02:49.7]} 11. h5 {[%clk 0:02:50.5]}
11... Ne8 {[%clk 0:02:44.8]} 12. Qd2 {[%clk 0:02:48.1]} 12... f5 {[%clk
0:02:41.6]} 13. hxg6 {[%clk 0:02:34.8]} 13... hxg6 {[%clk 0:02:40.8]} 14. gxf5
{[%clk 0:02:23.9]} 14... gxf5 {[%clk 0:02:40.3]} 15. Bg5 {[%clk 0:01:55.6]}
15... Bf6 {[%clk 0:02:25.8]} 16. Bxf6 {[%clk 0:01:54.9]} 16... Qxf6 {[%clk
0:02:22.8]} 17. O-O-O {[%clk 0:01:48.3]} 17... fxe4 {[%clk 0:02:02.6]} 18. fxe4
{[%clk 0:01:43.8]} 18... Qf4 {[%clk 0:02:00.3]} 19. Nf3 {[%clk 0:01:40.6]} 19...
Qxd2+ {[%clk 0:01:59.2]} 20. Kxd2 {[%clk 0:01:39]} 20... Nf6 {[%clk 0:01:33.8]}
21. Rdg1+ {[%clk 0:01:33.2]} 21... Kf7 {[%clk 0:01:31.6]} 22. Ng5+ {[%clk
0:01:23.9]} 22... Ke7 {[%clk 0:01:31.2]} 23. Ke3 {[%clk 0:01:13.3]} 23... Bd7
{[%clk 0:01:28.6]} 24. Nh7 {[%clk 0:01:05.3]} 24... Nxh7 {[%clk 0:01:01.9]} 25.
Rxh7+ {[%clk 0:01:06.2]} 25... Rf7 {[%clk 0:01:02.2]} 26. Rgg7 {[%clk
0:01:06.6]} 26... Rf8 {[%clk 0:00:48.1]} 27. Bh5 {[%clk 0:01:06.7]} 27... Rxg7
{[%clk 0:00:46.9]} 28. Rxg7+ {[%clk 0:01:07.6]} 28... Kd8 {[%clk 0:00:44.8]} 29.
a3 {[%clk 0:00:56.9]} 29... a4 {[%clk 0:00:43]} 30. Na2 {[%clk 0:00:30.6]} 30...
Rh8 {[%clk 0:00:41.1]} 31. Bf3 {[%clk 0:00:26]} 31... Rh2 {[%clk 0:00:37.5]} 32.
Nb4 {[%clk 0:00:24.8]} 32... Rxb2 {[%clk 0:00:34.2]} 33. Bg4 {[%clk 0:00:13.8]}
33... Bxg4 {[%clk 0:00:32]} 34. Rxg4 {[%clk 0:00:14.7]} 34... Rb3+ {[%clk
0:00:30.8]} 35. Ke2 {[%clk 0:00:15]} 35... Rxa3 {[%clk 0:00:30.9]} 36. Nc6+
{[%clk 0:00:14.7]} 36... Ke8 {[%clk 0:00:29.7]} 37. Rg8+ {[%clk 0:00:10.8]}
37... Kf7 {[%clk 0:00:29.6]} 38. Rc8 {[%clk 0:00:11.3]} 38... Nxe4 {[%clk
0:00:28.7]} 39. Rxc7+ {[%clk 0:00:11.9]} 39... Kf6 {[%clk 0:00:28.7]} 40. Nd8
{[%clk 0:00:06.8]} 40... Rc3 {[%clk 0:00:25.5]} 41. Rf7+ {[%clk 0:00:05.5]}
41... Kg6 {[%clk 0:00:25.9]} 42. Ra7 {[%clk 0:00:05.9]} 42... a3 {[%clk
0:00:25.3]} 43. Ne6 {[%clk 0:00:05.4]} 43... Kf5 {[%clk 0:00:23.4]} 44. Rf7+
{[%clk 0:00:04.5]} 44... Kg4 {[%clk 0:00:22.4]} 45. Ra7 {[%clk 0:00:02.9]} 45...
Nc5 {[%clk 0:00:19.9]} 46. Nf8 {[%clk 0:00:01.4]} 46... Kf5 {[%clk 0:00:18.7]}
47. Kf2 {[%clk 0:00:01.6]} 47... e4 {[%clk 0:00:17.6]} 48. Rf7+ {[%clk
0:00:02.1]} 48... Ke5 {[%clk 0:00:17.8]} 49. Ne6 {[%clk 0:00:02]} 49... Nxe6
{[%clk 0:00:16.6]} 50. Re7 {[%clk 0:00:02.8]} 50... Kf4 {[%clk 0:00:15.3]} 51.
Rxe6 {[%clk 0:00:03]} 51... Rc2+ {[%clk 0:00:15.6]} 52. Ke1 {[%clk 0:00:03.2]}
52... a2 {[%clk 0:00:15.7]} 53. Rf6+ {[%clk 0:00:03.8]} 53... Ke3 {[%clk
0:00:15.7]} 54. Kd1 {[%clk 0:00:03.5]} 54... Rd2+ {[%clk 0:00:13.8]} 55. Ke1
{[%clk 0:00:03.3]} 55... a1=Q# {[%clk 0:00:13.5]} 0-1

[Event "Late-Titled-Tuesday-Blitz-May-07-2024"]
[Site "Chess.com"]
[Date "2024.05.07"]
[Round "4"]
[White "Chessdreamer2020"]
[Black "besarquis"]
[Result "1-0"]
[WhiteElo "2512"]
[BlackElo "2272"]
[TimeControl "180+1"]
[EndTime "14:39:36 PDT"]
[Termination "Chessdreamer2020 won on time"]

1. e4 {[%clk 0:02:59.9]} 1... e5 {[%clk 0:02:57.6]} 2. Nf3 {[%clk 0:02:59.7]}
2... Nc6 {[%clk 0:02:57.2]} 3. Bc4 {[%clk 0:02:59.6]} 3... Nf6 {[%clk
0:02:56.2]} 4. d4 {[%clk 0:02:59.6]} 4... Nxd4 {[%clk 0:02:48.4]} 5. Bxf7+
{[%clk 0:02:59.1]} 5... Kxf7 {[%clk 0:02:43.9]} 6. Nxe5+ {[%clk 0:02:58.9]} 6...
Ke8 {[%clk 0:02:43.1]} 7. Qxd4 {[%clk 0:02:59.8]} 7... d6 {[%clk 0:02:42.2]} 8.
Nf3 {[%clk 0:02:59.4]} 8... Be7 {[%clk 0:02:39.9]} 9. O-O {[%clk 0:02:57.8]}
9... Bg4 {[%clk 0:02:39.9]} 10. Nfd2 {[%clk 0:02:51.5]} 10... Qd7 {[%clk
0:02:26.9]} 11. f3 {[%clk 0:02:50.4]} 11... Be6 {[%clk 0:02:24.4]} 12. Nc3
{[%clk 0:02:49.7]} 12... b6 {[%clk 0:01:48]} 13. Nb3 {[%clk 0:02:42.5]} 13...
Kd8 {[%clk 0:01:44.2]} 14. Bg5 {[%clk 0:02:40.7]} 14... Kc8 {[%clk 0:01:39.6]}
15. a4 {[%clk 0:02:39.1]} 15... h6 {[%clk 0:01:36.2]} 16. Be3 {[%clk 0:02:37.1]}
16... Kb7 {[%clk 0:01:32.6]} 17. a5 {[%clk 0:02:36.6]} 17... g5 {[%clk
0:01:25.1]} 18. a6+ {[%clk 0:02:34.7]} 18... Kc8 {[%clk 0:01:24]} 19. Nd5 {[%clk
0:02:33.9]} 19... Rf8 {[%clk 0:01:15.2]} 20. c4 {[%clk 0:02:31.9]} 20... Nh5
{[%clk 0:01:08.5]} 21. Qd2 {[%clk 0:02:14.6]} 21... Bd8 {[%clk 0:01:07.1]} 22.
Nd4 {[%clk 0:02:13.6]} 22... c6 {[%clk 0:01:01.8]} 23. Nxe6 {[%clk 0:02:07.2]}
23... Qxe6 {[%clk 0:01:01.5]} 24. Nb4 {[%clk 0:02:07.6]} 24... Kc7 {[%clk
0:01:01.6]} 25. Rac1 {[%clk 0:02:04.2]} 25... Bf6 {[%clk 0:00:58.1]} 26. Nd5+
{[%clk 0:02:03.5]} 26... Kd7 {[%clk 0:00:52.2]} 27. Rfd1 {[%clk 0:02:02.2]}
27... Be5 {[%clk 0:00:50.1]} 28. Nb4 {[%clk 0:01:57.3]} 28... Kc7 {[%clk
0:00:46]} 29. Nd3 {[%clk 0:01:56.1]} 29... Nf4 {[%clk 0:00:37.2]} 30. Bxf4
{[%clk 0:01:51.5]} 30... Bxf4 {[%clk 0:00:34.2]} 31. Nxf4 {[%clk 0:01:51.7]}
31... Rxf4 {[%clk 0:00:34.4]} 32. b4 {[%clk 0:01:51.8]} 32... Raf8 {[%clk
0:00:32.2]} 33. c5 {[%clk 0:01:51.5]} 33... dxc5 {[%clk 0:00:22]} 34. bxc5
{[%clk 0:01:52.4]} 34... g4 {[%clk 0:00:21.7]} 35. cxb6+ {[%clk 0:01:51.5]}
35... axb6 {[%clk 0:00:21.5]} 36. fxg4 {[%clk 0:01:48.2]} 36... Rxe4 {[%clk
0:00:20.1]} 37. a7 {[%clk 0:01:27.4]} 37... Re2 {[%clk 0:00:20.3]} 38. Qd4
{[%clk 0:01:17.8]} 38... Re8 {[%clk 0:00:14.5]} 39. Rf1 {[%clk 0:01:12.4]} 39...
Ra2 {[%clk 0:00:14.2]} 40. Qg7+ {[%clk 0:01:10.3]} 40... Re7 {[%clk 0:00:13.4]}
41. Qc3 {[%clk 0:00:41.9]} 41... Rxa7 {[%clk 0:00:12.9]} 42. Rf6 {[%clk
0:00:42.3]} 42... Qe3+ {[%clk 0:00:11.6]} 43. Qxe3 {[%clk 0:00:41.7]} 43... Rxe3
{[%clk 0:00:12.3]} 44. Rfxc6+ {[%clk 0:00:40.3]} 44... Kd7 {[%clk 0:00:12.9]}
45. Rxb6 {[%clk 0:00:39.7]} 45... Ra2 {[%clk 0:00:12.9]} 46. Rd1+ {[%clk
0:00:27.8]} 46... Kc7 {[%clk 0:00:12.5]} 47. Rxh6 {[%clk 0:00:27.4]} 47... Ree2
{[%clk 0:00:12.7]} 48. Kh1 {[%clk 0:00:25.9]} 48... Rxg2 {[%clk 0:00:12.1]} 49.
Rg1 {[%clk 0:00:25.3]} 49... Rgf2 {[%clk 0:00:05.9]} 50. g5 {[%clk 0:00:24.7]}
1-0

[Event "Late-Titled-Tuesday-Blitz-May-07-2024"]
[Site "Chess.com"]
[Date "2024.05.07"]
[Round "4"]
[White "WindWhistler11"]
[Black "Reyson01"]
[Result "0-1"]
[WhiteElo "2532"]
[BlackElo "2452"]
[TimeControl "180+1"]
[EndTime "14:39:37 PDT"]
[Termination "Reyson01 won on time"]

1. Nf3 {[%clk 0:03:00]} 1... d5 {[%clk 0:02:58.1]} 2. c4 {[%clk 0:02:59.3]} 2...
d4 {[%clk 0:02:57.8]} 3. g3 {[%clk 0:02:59.7]} 3... f6 {[%clk 0:02:56.5]} 4. e3
{[%clk 0:02:59.9]} 4... c5 {[%clk 0:02:51.3]} 5. exd4 {[%clk 0:02:59.9]} 5...
cxd4 {[%clk 0:02:52.2]} 6. Bg2 {[%clk 0:02:58.5]} 6... Nc6 {[%clk 0:02:51.8]} 7.
d3 {[%clk 0:02:59]} 7... e5 {[%clk 0:02:52]} 8. O-O {[%clk 0:02:59.5]} 8... h5
{[%clk 0:02:51.9]} 9. h4 {[%clk 0:02:52.1]} 9... Nh6 {[%clk 0:02:50.1]} 10. Re1
{[%clk 0:02:50.6]} 10... Ng4 {[%clk 0:02:49.7]} 11. a3 {[%clk 0:02:45.5]} 11...
a5 {[%clk 0:02:48.8]} 12. Nbd2 {[%clk 0:02:42.4]} 12... Be7 {[%clk 0:02:44.2]}
13. Rb1 {[%clk 0:02:38.3]} 13... a4 {[%clk 0:02:43.9]} 14. b4 {[%clk 0:02:34.6]}
14... axb3 {[%clk 0:02:44.8]} 15. Rxb3 {[%clk 0:02:34]} 15... O-O {[%clk
0:02:34.9]} 16. Nh2 {[%clk 0:02:28.5]} 16... Bd6 {[%clk 0:01:41]} 17. Bf3 {[%clk
0:02:17.6]} 17... f5 {[%clk 0:01:24.3]} 18. Bd5+ {[%clk 0:02:09.5]} 18... Kh7
{[%clk 0:01:22.9]} 19. Ndf3 {[%clk 0:02:06.8]} 19... Qf6 {[%clk 0:00:53.1]} 20.
Bg5 {[%clk 0:01:24.7]} 20... Qg6 {[%clk 0:00:46.9]} 21. Bxc6 {[%clk 0:01:19.5]}
21... bxc6 {[%clk 0:00:47.8]} 22. Nxg4 {[%clk 0:01:18.1]} 22... fxg4 {[%clk
0:00:45.3]} 23. Nxe5 {[%clk 0:01:11.6]} 23... Qf5 {[%clk 0:00:20.3]} 24. Bf4
{[%clk 0:01:07.7]} 24... c5 {[%clk 0:00:19.9]} 25. Rb6 {[%clk 0:01:04.7]} 25...
Bc7 {[%clk 0:00:20.1]} 26. Rg6 {[%clk 0:01:04.6]} 26... Bxe5 {[%clk 0:00:19.1]}
27. Rg5 {[%clk 0:01:05]} 27... Bxf4 {[%clk 0:00:16.7]} 28. Rxf5 {[%clk
0:01:04.2]} 28... Rxf5 {[%clk 0:00:17.3]} 29. gxf4 {[%clk 0:01:04.6]} 29... Rxf4
{[%clk 0:00:18.2]} 30. Qd2 {[%clk 0:00:59]} 30... Rf5 {[%clk 0:00:18.4]} 31. Re8
{[%clk 0:00:56.6]} 31... Rb8 {[%clk 0:00:16.4]} 32. Kh2 {[%clk 0:00:52.8]} 32...
Kg6 {[%clk 0:00:07.3]} 33. a4 {[%clk 0:00:48.7]} 33... Kf7 {[%clk 0:00:07.1]}
34. Qe2 {[%clk 0:00:47.3]} 34... Rxf2+ {[%clk 0:00:04.4]} 35. Qxf2+ {[%clk
0:00:47.2]} 35... Kxe8 {[%clk 0:00:05.3]} 36. Qe2+ {[%clk 0:00:42]} 36... Kf7
{[%clk 0:00:05.8]} 37. Qe5 {[%clk 0:00:41.9]} 37... Rb2+ {[%clk 0:00:05.3]} 38.
Kg3 {[%clk 0:00:42.2]} 38... Be6 {[%clk 0:00:05.4]} 39. Qxc5 {[%clk 0:00:41.2]}
39... Rd2 {[%clk 0:00:05.5]} 40. Qxd4 {[%clk 0:00:40.7]} 40... Bf5 {[%clk
0:00:06.2]} 41. Qd5+ {[%clk 0:00:39.2]} 41... Kg6 {[%clk 0:00:05.7]} 42. Qd6+
{[%clk 0:00:39.5]} 42... Kh7 {[%clk 0:00:06.2]} 43. d4 {[%clk 0:00:36.8]} 43...
Rd3+ {[%clk 0:00:05.7]} 44. Kf4 {[%clk 0:00:37.1]} 44... Rf3+ {[%clk 0:00:03.3]}
45. Kg5 {[%clk 0:00:36.9]} 45... g3 {[%clk 0:00:04.2]} 46. c5 {[%clk 0:00:26.1]}
46... g2 {[%clk 0:00:04]} 47. Qh2 {[%clk 0:00:26.4]} 47... Bh3 {[%clk
0:00:03.4]} 48. Qe5 {[%clk 0:00:01.7]} 48... g1=Q+ {[%clk 0:00:02.2]} 0-1

[Event "Late-Titled-Tuesday-Blitz-May-07-2024"]
[Site "Chess.com"]
[Date "2024.05.07"]
[Round "4"]
[White "moro182"]
[Black "GM_dmitrij"]
[Result "1/2-1/2"]
[WhiteElo "2877"]
[BlackElo "3042"]
[TimeControl "180+1"]
[EndTime "14:39:43 PDT"]
[Termination "Game drawn by repetition"]

1. c4 {[%clk 0:03:00.3]} 1... e5 {[%clk 0:02:59.7]} 2. Nc3 {[%clk 0:03:00.4]}
2... Bb4 {[%clk 0:02:59.6]} 3. e3 {[%clk 0:02:57.6]} 3... Nf6 {[%clk 0:02:50.1]}
4. Nge2 {[%clk 0:02:57.2]} 4... O-O {[%clk 0:02:40.3]} 5. a3 {[%clk 0:02:56.4]}
5... Be7 {[%clk 0:02:40.9]} 6. Qc2 {[%clk 0:02:55.1]} 6... c5 {[%clk 0:02:36.8]}
7. Ng3 {[%clk 0:02:49.7]} 7... Nc6 {[%clk 0:02:36.7]} 8. Bd3 {[%clk 0:02:46.3]}
8... d6 {[%clk 0:02:32.6]} 9. Nd5 {[%clk 0:02:46.2]} 9... g6 {[%clk 0:02:21.9]}
10. h4 {[%clk 0:02:45.7]} 10... h5 {[%clk 0:01:52]} 11. b3 {[%clk 0:01:45]}
11... Nh7 {[%clk 0:01:10]} 12. Bb2 {[%clk 0:01:39.1]} 12... Bg4 {[%clk
0:01:04.8]} 13. Nxe7+ {[%clk 0:01:23.2]} 13... Qxe7 {[%clk 0:01:03.6]} 14. f3
{[%clk 0:01:23.8]} 14... Be6 {[%clk 0:01:01.9]} 15. Nxh5 {[%clk 0:01:23.5]}
15... d5 {[%clk 0:00:30.8]} 16. cxd5 {[%clk 0:01:20.2]} 16... Bxd5 {[%clk
0:00:31.7]} 17. Ng3 {[%clk 0:01:17.3]} 17... Qe6 {[%clk 0:00:31.6]} 18. Bc4
{[%clk 0:01:06.2]} 18... Rad8 {[%clk 0:00:29.1]} 19. h5 {[%clk 0:01:01.3]} 19...
g5 {[%clk 0:00:29.4]} 20. Ne4 {[%clk 0:00:55]} 20... b6 {[%clk 0:00:29.7]} 21.
g4 {[%clk 0:00:51.8]} 21... Na5 {[%clk 0:00:24.9]} 22. Bxd5 {[%clk 0:00:48.8]}
22... Qxd5 {[%clk 0:00:25.8]} 23. b4 {[%clk 0:00:40.2]} 23... Nc4 {[%clk
0:00:17.5]} 24. Bc3 {[%clk 0:00:39.6]} 24... cxb4 {[%clk 0:00:11.9]} 25. axb4
{[%clk 0:00:39.8]} 25... Rd7 {[%clk 0:00:12.4]} 26. O-O {[%clk 0:00:26.6]} 26...
Nd6 {[%clk 0:00:09.8]} 27. Qa2 {[%clk 0:00:19.8]} 27... Qc6 {[%clk 0:00:06.1]}
28. Nxd6 {[%clk 0:00:11.7]} 28... Qxd6 {[%clk 0:00:07]} 29. Qb2 {[%clk 0:00:09]}
29... f5 {[%clk 0:00:05.5]} 30. Bxe5 {[%clk 0:00:06]} 30... Qe6 {[%clk
0:00:03.9]} 31. d4 {[%clk 0:00:03.4]} 31... fxg4 {[%clk 0:00:03.8]} 32. Qg2
{[%clk 0:00:03.4]} 32... Nf6 {[%clk 0:00:01.9]} 33. Bxf6 {[%clk 0:00:02.3]}
33... Qxe3+ {[%clk 0:00:02.3]} 34. Qf2 {[%clk 0:00:02]} 34... Qxf2+ {[%clk
0:00:02.7]} 35. Rxf2 {[%clk 0:00:02.9]} 35... Rxf6 {[%clk 0:00:03.2]} 36. fxg4
{[%clk 0:00:03.5]} 36... Rxf2 {[%clk 0:00:03.5]} 37. Kxf2 {[%clk 0:00:04.4]}
37... Rxd4 {[%clk 0:00:04]} 38. Rxa7 {[%clk 0:00:04.9]} 38... Rxg4 {[%clk
0:00:04.2]} 39. b5 {[%clk 0:00:05.5]} 39... Rb4 {[%clk 0:00:04.1]} 40. h6 {[%clk
0:00:06]} 40... Rxb5 {[%clk 0:00:04.1]} 41. Kg3 {[%clk 0:00:06.6]} 41... Rb4
{[%clk 0:00:02.1]} 42. Rb7 {[%clk 0:00:06.5]} 42... Kh8 {[%clk 0:00:02.3]} 43.
Rc7 {[%clk 0:00:06.8]} 43... b5 {[%clk 0:00:02.7]} 44. Rb7 {[%clk 0:00:06.6]}
44... g4 {[%clk 0:00:03]} 45. Kh4 {[%clk 0:00:06.2]} 45... g3+ {[%clk
0:00:03.5]} 46. Kxg3 {[%clk 0:00:06.4]} 46... Rb1 {[%clk 0:00:04.2]} 47. Kg4
{[%clk 0:00:06]} 47... b4 {[%clk 0:00:04.8]} 48. Kg5 {[%clk 0:00:04.7]} 48... b3
{[%clk 0:00:05.4]} 49. Rb8+ {[%clk 0:00:04.7]} 49... Kh7 {[%clk 0:00:05.2]} 50.
Rb7+ {[%clk 0:00:05.6]} 50... Kh8 {[%clk 0:00:05.9]} 51. Kg6 {[%clk 0:00:05.7]}
51... Rg1+ {[%clk 0:00:05.4]} 52. Kh5 {[%clk 0:00:06.2]} 52... Rb1 {[%clk
0:00:06.3]} 53. Kg5 {[%clk 0:00:06.3]} 53... b2 {[%clk 0:00:05.9]} 54. Rb8+
{[%clk 0:00:06.7]} 54... Kh7 {[%clk 0:00:06.3]} 55. Rb7+ {[%clk 0:00:07.1]}
55... Kg8 {[%clk 0:00:06.5]} 56. Rb8+ {[%clk 0:00:07]} 56... Kh7 {[%clk
0:00:06.9]} 57. Rb7+ {[%clk 0:00:06.7]} 57... Kh8 {[%clk 0:00:07.4]} 58. Rb8+
{[%clk 0:00:06.8]} 58... Kh7 {[%clk 0:00:07.7]} 1/2-1/2

[Event "Late-Titled-Tuesday-Blitz-May-07-2024"]
[Site "Chess.com"]
[Date "2024.05.07"]
[Round "4"]
[White "KorolDimitriy75"]
[Black "KingCyber19"]
[Result "1/2-1/2"]
[WhiteElo "2396"]
[BlackElo "2574"]
[TimeControl "180+1"]
[EndTime "14:39:46 PDT"]
[Termination "Game drawn by repetition"]

1. d4 {[%clk 0:03:00.9]} 1... d5 {[%clk 0:02:59.5]} 2. c4 {[%clk 0:03:01]} 2...
c6 {[%clk 0:02:56.6]} 3. Nc3 {[%clk 0:03:01.3]} 3... Nf6 {[%clk 0:02:55.4]} 4.
e3 {[%clk 0:03:01.8]} 4... e6 {[%clk 0:02:53.7]} 5. Nf3 {[%clk 0:03:02.2]} 5...
Nbd7 {[%clk 0:02:47.8]} 6. Bd3 {[%clk 0:03:02.7]} 6... Bd6 {[%clk 0:02:46.2]} 7.
O-O {[%clk 0:03:02.3]} 7... O-O {[%clk 0:02:40.9]} 8. e4 {[%clk 0:03:02.6]} 8...
dxe4 {[%clk 0:02:37.3]} 9. Nxe4 {[%clk 0:03:03.5]} 9... Nxe4 {[%clk 0:02:37.6]}
10. Bxe4 {[%clk 0:03:04.4]} 10... h6 {[%clk 0:02:35.1]} 11. Qe2 {[%clk
0:02:27.4]} 11... Nf6 {[%clk 0:02:15.9]} 12. Bc2 {[%clk 0:02:27]} 12... b6
{[%clk 0:02:06.8]} 13. b3 {[%clk 0:02:20.6]} 13... c5 {[%clk 0:02:02.6]} 14. Bb2
{[%clk 0:02:20.8]} 14... Bb7 {[%clk 0:02:00.9]} 15. Rad1 {[%clk 0:02:19.6]}
15... Qe7 {[%clk 0:01:54.9]} 16. Ne5 {[%clk 0:02:10.7]} 16... cxd4 {[%clk
0:01:45.4]} 17. Bxd4 {[%clk 0:02:08]} 17... Rad8 {[%clk 0:01:41.6]} 18. h3
{[%clk 0:02:00]} 18... Bc5 {[%clk 0:01:37.8]} 19. Bc3 {[%clk 0:01:29.6]} 19...
Ba8 {[%clk 0:01:26.9]} 20. Ng4 {[%clk 0:01:20]} 20... Nxg4 {[%clk 0:00:58.9]}
21. Qxg4 {[%clk 0:01:20.9]} 21... f5 {[%clk 0:00:59]} 22. Qg6 {[%clk 0:00:58]}
22... Qf7 {[%clk 0:00:57.9]} 23. Qxf7+ {[%clk 0:00:52]} 23... Kxf7 {[%clk
0:00:57.1]} 24. Be5 {[%clk 0:00:52]} 24... Bc6 {[%clk 0:00:44.3]} 25. Rxd8
{[%clk 0:00:34.9]} 25... Rxd8 {[%clk 0:00:38.8]} 26. Rd1 {[%clk 0:00:35.8]}
26... Rxd1+ {[%clk 0:00:34]} 27. Bxd1 {[%clk 0:00:36.7]} 27... Be4 {[%clk
0:00:34.4]} 28. Bc3 {[%clk 0:00:26.3]} 28... a5 {[%clk 0:00:32.9]} 29. Kf1
{[%clk 0:00:21.1]} 29... Bb1 {[%clk 0:00:31.5]} 30. a4 {[%clk 0:00:18.9]} 30...
Bd3+ {[%clk 0:00:30.3]} 31. Ke1 {[%clk 0:00:18.1]} 31... Be4 {[%clk 0:00:27.4]}
32. f3 {[%clk 0:00:17.8]} 32... Bc6 {[%clk 0:00:26]} 33. Kd2 {[%clk 0:00:18]}
33... Bd7 {[%clk 0:00:22.8]} 34. Be2 {[%clk 0:00:17.7]} 34... g6 {[%clk
0:00:21.4]} 35. f4 {[%clk 0:00:17.9]} 35... Bd6 {[%clk 0:00:20.4]} 36. g3 {[%clk
0:00:17.1]} 36... Bc5 {[%clk 0:00:20]} 37. Bf3 {[%clk 0:00:16.8]} 37... Ke7
{[%clk 0:00:19.4]} 38. Ke2 {[%clk 0:00:15.5]} 38... h5 {[%clk 0:00:19.6]} 39. h4
{[%clk 0:00:15.8]} 39... Be8 {[%clk 0:00:19.8]} 40. Be5 {[%clk 0:00:15.6]} 40...
Bd6 {[%clk 0:00:18.8]} 41. Bd4 {[%clk 0:00:15.5]} 41... Bc5 {[%clk 0:00:17.2]}
42. Be5 {[%clk 0:00:15.8]} 42... Bd7 {[%clk 0:00:16]} 43. Bg2 {[%clk 0:00:15.5]}
43... Bc8 {[%clk 0:00:14.5]} 44. Bf3 {[%clk 0:00:15.7]} 44... Kd8 {[%clk
0:00:12.2]} 45. Bc6 {[%clk 0:00:14.9]} 45... Bd7 {[%clk 0:00:10.3]} 46. Bf3
{[%clk 0:00:14.8]} 46... Ke7 {[%clk 0:00:09.4]} 47. Bb7 {[%clk 0:00:14.5]} 47...
Bd6 {[%clk 0:00:09.5]} 48. Bd4 {[%clk 0:00:14.1]} 48... Bc7 {[%clk 0:00:09.1]}
49. Bf3 {[%clk 0:00:12.6]} 49... Bd8 {[%clk 0:00:06.2]} 50. Kd3 {[%clk
0:00:12.4]} 50... Bc7 {[%clk 0:00:06.7]} 51. Ke3 {[%clk 0:00:11]} 51... Bc8
{[%clk 0:00:06.7]} 52. Kd3 {[%clk 0:00:10.8]} 52... Kd7 {[%clk 0:00:06.4]} 53.
Ke3 {[%clk 0:00:10.2]} 53... Bd8 {[%clk 0:00:05.8]} 54. Kd3 {[%clk 0:00:10.2]}
54... Kc7 {[%clk 0:00:05.9]} 55. Be5+ {[%clk 0:00:09.9]} 55... Kd7 {[%clk
0:00:06.4]} 56. Bd4 {[%clk 0:00:09.9]} 56... Bc7 {[%clk 0:00:06.8]} 57. Ke3
{[%clk 0:00:09.6]} 57... Kd6 {[%clk 0:00:06.7]} 58. Be5+ {[%clk 0:00:09.4]}
58... Kd7 {[%clk 0:00:07.4]} 59. Bd4 {[%clk 0:00:09.5]} 1/2-1/2